fUSD/lending_fUSD_20251017
["ID","MTS","AMOUNT","RATE_DAILY","PERIOD"]
[391696969,1760733041839,-193.9679,0.000249,7]
[391696971,1760733041849,-300.751597,0.000249,7]
[391696973,1760733041858,-1122.02381628,0.00025,7]
[391696975,1760733041867,-1881.99999985,0.00025,7]
[391696977,1760733041876,-15329.66382141,0.000259,2]
[391696979,1760733041884,-557.02486353,0.00026,2]
[391696981,1760733041893,-2065.08422593,0.00026,7]
[391696983,1760733041903,-5953.655,0.00026419,13]
[391696985,1760733041912,-382.534,0.00026419,13]
[391696987,1760733041921,-349.3,0.00026676,2]
[391696989,1760733041930,-218.65,0.00026992,2]
[391696991,1760733041939,-21062.95468112,0.00027,2]
[391696993,1760733041948,-1593.9475,0.00027397,2]
[391696996,1760733041961,-226.74,0.00027397,2]
[391696998,1760733041971,-1153.18,0.000274,2]
[391697000,1760733041980,-1151.24,0.000274,7]
[391697002,1760733041989,-9595.82,0.000274,2]
[391697004,1760733041998,-771.68,0.000274,2]
[391697006,1760733042007,-771.68,0.000274,2]
[391697008,1760733042016,-771.68,0.000274,2]
[391697010,1760733042025,-771.68,0.000274,2]
[391697012,1760733042034,-771.68,0.000274,2]
[391697014,1760733042044,-1000.0,0.000275,4]
[391697016,1760733042053,-18850.61054398,0.00028,60]
[391697018,1760733042063,-300.0,0.00028145,34]
[391697020,1760733042071,-378.87,0.00028386,2]
[391697022,1760733042080,-161.76830817,0.00028732,2]
[391697024,1760733042090,-189.64,0.00028797,2]
[391697026,1760733042099,-40000.0,0.000288,10]
[391697028,1760733042108,-207.20005373,0.00028871,2]
[391697030,1760733042117,-17000.0,0.00029,2]
[391697031,1760733042126,-459.70943458,0.00029122,2]
[391697033,1760733042136,-23108.59852206,0.00029824,2]
[391697035,1760733042145,-1441.70038484,0.00029825,2]
[391697038,1760733042155,-3658.22514334,0.00029826,2]
[391697039,1760733042164,-328.75199819,0.00029834,2]
[391697041,1760733042173,-211.31825911,0.00029841,2]
[391697043,1760733042183,-1441.70038484,0.00029849,2]
[391697045,1760733042193,-2609.87685164,0.00029862,2]
[391697047,1760733042202,-23108.59852206,0.00029871,2]
[391697049,1760733042211,-720.85019242,0.00029873,2]
[391697052,1760733042221,-1427.99658631,0.00029875,2]
[391697054,1760733042230,-155066.7548544,0.00029876,2]
[391697055,1760733042239,-191.00348528,0.00029877,2]
[391697058,1760733042249,-23108.59852206,0.0002988,2]
[391697060,1760733042259,-155066.7548544,0.00029883,2]
[391697061,1760733042268,-2609.87685164,0.00029886,2]
[391697064,1760733042277,-2609.87685164,0.00029888,2]
[391697066,1760733042287,-191.00348528,0.00029891,2]
[391697067,1760733042296,-1427.99658631,0.00029893,2]
[391697070,1760733042306,-155066.7548544,0.00029897,2]
[391697072,1760733042315,-1441.70038484,0.000299,2]
[391697074,1760733042324,-3658.22514334,0.00029901,2]
[391697075,1760733042335,-328.75199819,0.00029909,2]
[391697078,1760733042344,-211.31825911,0.00029912,2]
[391697080,1760733042354,-2609.87685164,0.00029913,2]
[391697081,1760733042364,-1427.99658631,0.00029929,2]
[391697084,1760733042374,-328.75199819,0.0002993,2]
[391697086,1760733042383,-211.31825911,0.00029933,2]
[391697088,1760733042392,-3658.22514334,0.00029933,2]
[391697090,1760733042401,-155066.7548544,0.00029939,2]
[391697092,1760733042411,-1427.99658631,0.00029946,2]
[391697094,1760733042420,-1441.70038484,0.00029946,2]
[391697096,1760733042429,-720.85019242,0.00029949,2]
[391697098,1760733042438,-3658.22514334,0.00029951,2]
[391697100,1760733042447,-191.00348528,0.00029953,2]
[391697102,1760733042457,-720.85019242,0.00029972,2]
[391697104,1760733042466,-211.31825911,0.00029979,2]
[391697106,1760733042475,-23108.59852206,0.00029985,2]
[391697108,1760733042485,-328.75199819,0.00029988,2]
[391697110,1760733042494,-720.85019242,0.00029989,2]
[391697112,1760733042503,-191.00348528,0.00029994,2]
[391697114,1760733042512,-2731.73356622,0.0003,120]
[391697115,1760733042521,-668.48960045,0.0003013,120]
[391697117,1760733042532,-3187.895,0.00030136,3]
[391697119,1760733042543,-281.6321594,0.0003065,2]
[391697121,1760733042552,-5061.79264072,0.00030766,2]
[391697123,1760733042562,-5000.0,0.00030766,2]
[391697125,1760733042571,-5000.0,0.00030766,2]
[391697127,1760733042582,-5000.0,0.00030766,2]
[391697129,1760733042591,-5000.0,0.00030766,2]
[391697131,1760733042601,-150.0,0.00030846,120]
[391697133,1760733042613,-151.94049648,0.00030934,15]
[391697135,1760733042622,-151.0,0.00031,120]
[391697137,1760733042632,-154.0,0.00031,120]
[391697139,1760733042642,-164.0,0.00031,2]
[391697141,1760733042652,-499.999999,0.0003121,2]
[391697144,1760733042661,-4707.73024358,0.00031219,3]
[391697145,1760733042671,-400.0,0.0003127,2]
[391697147,1760733042680,-320.67,0.000313,30]
[391697149,1760733042690,-725.01476384,0.000314,30]
[391697152,1760733042699,-19314.35490127,0.0003143,4]
[391697154,1760733042709,-161.76830817,0.00031606,2]
[391697156,1760733042718,-150.15448368,0.0003165,5]
[391697158,1760733042727,-161.38589304,0.0003165,5]
[391697160,1760733042737,-200.0,0.00031737,2]
[391697162,1760733042746,-400.0,0.0003177,2]
[391697164,1760733042755,-151.0,0.000318,120]
[391697166,1760733042764,-5568.41,0.000318,7]
[391697168,1760733042773,-218.24295797,0.00031983,120]
[391697170,1760733042783,-3204.59563733,0.00032,120]
[391697172,1760733042791,-158.55276527,0.00032,30]
[391697174,1760733042800,-5745.93451095,0.00032,5]
[391697176,1760733042812,-199.10964775,0.000322,30]
[391697178,1760733042822,-154.0,0.000322,120]
[391697180,1760733042832,-151.0,0.00032216,7]
[391697182,1760733042840,-300.0,0.00032218,10]
[391697184,1760733042850,-150.0,0.00032219,2]
[391697186,1760733042859,-8234.41685644,0.00032219,5]
[391697188,1760733042868,-6876.26816062,0.00032219,2]
[391697190,1760733042878,-156.98996217,0.00032219,2]
[391697192,1760733042887,-7999.999999,0.00032219,2]
[391697194,1760733042896,-200782.91526931,0.00032219,2]
[391697197,1760733042906,-504.87836015,0.00032219,2]
[391697200,1760733042915,-877.37453512,0.000323,2]
[391697202,1760733042925,-205.0,0.00032389,2]
[391697205,1760733042934,-151.0,0.000325,120]
[391697208,1760733042944,-9595.82,0.000325,2]
[391697210,1760733042953,-150.0,0.00032651,30]
[391697213,1760733042962,-1190.03618036,0.00032651,30]
[391697215,1760733042971,-150.0,0.00032651,30]
[391697217,1760733042980,-679.50288904,0.00032651,30]
[391697219,1760733042989,-150.0,0.00032651,30]
[391697221,1760733042998,-6062.3502835,0.00032651,30]
[391697223,1760733043007,-150.0,0.00032651,30]
[391697227,1760733043017,-839.64376218,0.00032651,30]
[391697230,1760733043026,-32323.69195133,0.00032748,5]
[391697235,1760733043036,-4742.17023011,0.000328,2]
[391697236,1760733043047,-4781.8425,0.00032876,4]
[391697238,1760733043056,-1153.18,0.000329,2]
[391697240,1760733043066,-1151.24,0.000329,30]
[391697242,1760733043075,-1509.25903709,0.00033,2]
[391697244,1760733043085,-1530.45005632,0.00033,2]
[391697256,1760733043095,-150.81024776,0.00033,2]
[391697258,1760733043264,-349.3,0.00033165,2]
[391697260,1760733043274,-151.0,0.000333,120]
[391697262,1760733043283,-1189.84483521,0.000335,2]
[391697264,1760733043292,-154.0,0.000335,120]
[391697266,1760733043304,-150.0,0.00033681,120]
[391697268,1760733043313,-459.70943458,0.00033863,2]
[391697270,1760733043322,-1000.3128096,0.00034,2]
[391697272,1760733043331,-976.96,0.00034,2]
[391697274,1760733043340,-19999.999999,0.00034,30]
[391697276,1760733043351,-151.0,0.000341,120]
[391697278,1760733043361,-35273.81620056,0.0003413,10]
[391697280,1760733043370,-161.76830817,0.00034479,2]
[391697282,1760733043379,-1699.80830621,0.0003449,2]
[391697284,1760733043388,-433.0,0.0003449,10]
[391697286,1760733043397,-154.0,0.000347,120]
[391697288,1760733043407,-151.0,0.000348,120]
[391697290,1760733043415,-2943.43154734,0.0003485,60]
[391697292,1760733043424,-3737.38423386,0.000349,24]
[391697294,1760733043433,-507.86946841,0.000349,2]
[391697296,1760733043442,-256.12427573,0.000349,120]
[391697298,1760733043452,-200.0,0.00035,120]
[391697300,1760733043461,-1110.75,0.00035,120]
[391697302,1760733043471,-1518.94,0.00035,120]
[391697304,1760733043480,-1553.17,0.00035,120]
[391697306,1760733043489,-1261.09,0.00035,120]
[391697308,1760733043498,-2381.28,0.00035,120]
[391697310,1760733043508,-2372.79,0.00035,120]
[391697312,1760733043517,-5568.41,0.00035,14]
[391697314,1760733043526,-400.06217147,0.00035,2]
[391697316,1760733043538,-1215.55064977,0.00035,2]
[391697318,1760733043547,-962.01,0.00035,60]
[391697320,1760733043557,-399.999999,0.00035,30]
[391697322,1760733043567,-2678.24040781,0.00035,60]
[391697325,1760733043577,-1000.0,0.00035,4]
[391697327,1760733043586,-30980.0,0.000353,2]
[391697329,1760733043595,-377.24,0.00035304,120]
[391697331,1760733043604,-22247.38,0.0003533,2]
[391697333,1760733043613,-153.0,0.00035343,2]
[391697335,1760733043624,-153.0,0.00035343,2]
[391697337,1760733043633,-153.0,0.00035343,2]
[391697340,1760733043644,-153.0,0.00035343,2]
[391697342,1760733043661,-153.0,0.00035343,2]
[391697345,1760733043672,-153.0,0.00035343,2]
[391697347,1760733043682,-153.0,0.00035343,2]
[391697349,1760733043691,-153.0,0.00035343,2]
[391697351,1760733043701,-153.0,0.00035343,2]
[391697353,1760733043710,-153.0,0.00035343,2]
[391697355,1760733043719,-153.0,0.00035343,2]
[391697357,1760733043729,-153.0,0.00035343,2]
[391697359,1760733043738,-153.0,0.00035343,2]
[391697361,1760733043747,-153.0,0.00035343,2]
[391697363,1760733043758,-153.0,0.00035343,2]
[391697365,1760733043770,-153.0,0.00035343,2]
[391697367,1760733043780,-153.0,0.00035343,2]
[391697369,1760733043789,-153.0,0.00035343,2]
[391697371,1760733043798,-153.0,0.00035343,2]
[391697373,1760733043807,-153.0,0.00035343,2]
[391697375,1760733043818,-153.0,0.00035343,2]
[391697377,1760733043828,-153.0,0.00035343,2]
[391697379,1760733043839,-153.0,0.00035343,2]
[391697381,1760733043849,-153.0,0.00035343,2]
[391697383,1760733043858,-153.0,0.00035343,2]
[391697385,1760733043868,-153.0,0.00035343,2]
[391697387,1760733043877,-153.0,0.00035343,2]
[391697390,1760733043887,-153.0,0.00035343,2]
[391697392,1760733043896,-153.0,0.00035343,2]
[391697394,1760733043905,-153.0,0.00035343,2]
[391697396,1760733043914,-153.0,0.00035343,2]
[391697398,1760733043924,-153.0,0.00035343,2]
[391697400,1760733043933,-153.0,0.00035343,2]
[391697402,1760733043942,-153.0,0.00035343,2]
[391697404,1760733043952,-153.0,0.00035343,2]
[391697406,1760733043961,-153.0,0.00035343,2]
[391697408,1760733043971,-153.0,0.00035343,2]
[391697410,1760733043981,-153.0,0.00035343,2]
[391697412,1760733043990,-153.0,0.00035343,2]
[391697414,1760733043999,-153.0,0.00035343,2]
[391697416,1760733044008,-153.0,0.00035343,2]
[391697418,1760733044018,-153.0,0.00035343,2]
[391697420,1760733044027,-153.0,0.00035343,2]
[391697422,1760733044037,-153.0,0.00035343,2]
[391697424,1760733044047,-153.0,0.00035343,2]
[391697426,1760733044056,-153.0,0.00035343,2]
[391697428,1760733044066,-153.0,0.00035343,2]
[391697430,1760733044075,-153.0,0.00035343,2]
[391697432,1760733044084,-153.0,0.00035343,2]
[391697434,1760733044094,-153.0,0.00035343,2]
[391697436,1760733044104,-153.0,0.00035343,2]
[391697438,1760733044113,-153.0,0.00035343,2]
[391697440,1760733044122,-153.0,0.00035343,2]
[391697442,1760733044132,-153.0,0.00035343,2]
[391697444,1760733044141,-153.0,0.00035343,2]
[391697446,1760733044151,-153.0,0.00035343,2]
[391697448,1760733044160,-153.0,0.00035343,2]
[391697450,1760733044169,-153.0,0.00035343,2]
[391697452,1760733044179,-153.0,0.00035343,2]
[391697454,1760733044189,-153.0,0.00035343,2]
[391697456,1760733044198,-153.0,0.00035343,2]
[391697458,1760733044211,-153.0,0.00035343,2]
[391697460,1760733044221,-153.0,0.00035343,2]
[391697462,1760733044230,-153.0,0.00035343,2]
[391697464,1760733044240,-153.0,0.00035343,2]
[391697467,1760733044251,-153.0,0.00035343,2]
[391697469,1760733044261,-153.0,0.00035343,2]
[391697471,1760733044271,-153.0,0.00035343,2]
[391697473,1760733044281,-153.0,0.00035343,2]
[391697475,1760733044290,-153.0,0.00035343,2]
[391697477,1760733044300,-153.0,0.00035343,2]
[391697479,1760733044310,-153.0,0.00035343,2]
[391697481,1760733044319,-153.0,0.00035343,2]
[391697483,1760733044329,-153.0,0.00035343,2]
[391697485,1760733044340,-153.0,0.00035343,2]
[391697487,1760733044350,-153.0,0.00035343,2]
[391697489,1760733044360,-153.0,0.00035343,2]
[391697491,1760733044371,-153.0,0.00035343,2]
[391697493,1760733044380,-153.0,0.00035343,2]
[391697495,1760733044390,-153.0,0.00035343,2]
[391697497,1760733044400,-153.0,0.00035343,2]
[391697499,1760733044409,-153.0,0.00035343,2]
[391697501,1760733044418,-300.0,0.00035389,10]
[391697503,1760733044428,-209717.63711429,0.0003539,30]
[391697505,1760733044437,-500.0,0.00035452,2]
[391697507,1760733044446,-9595.82,0.000355,2]
[391697509,1760733044456,-151.0,0.000356,120]
[391697511,1760733044465,-6375.79,0.00035616,5]
[391697513,1760733044475,-11081.00959497,0.00035672,30]
[391697515,1760733044484,-4537.6760399,0.0003585,60]
[391697517,1760733044493,-500.0,0.00036,2]
[391697519,1760733044503,-50026.49511703,0.00036,6]
[391697522,1760733044513,-10677.0561883,0.00036,2]
[391697524,1760733044522,-234.82294058,0.00036,120]
[391697526,1760733044533,-154.0,0.00036,120]
[391697528,1760733044544,-5512.0,0.000362,3]
[391697530,1760733044553,-151.0,0.000364,120]
[391697532,1760733044563,-250.0,0.0003647,2]
[391697534,1760733044574,-1153.18,0.000365,2]
[391697536,1760733044583,-1151.24,0.000365,30]
[391697538,1760733044594,-2680.44359193,0.000365,120]
[391697540,1760733044607,-150.0,0.00036562,2]
[391697542,1760733044616,-150.0,0.00036562,120]
[391697544,1760733044626,-1612.58918486,0.000367,120]
[391697546,1760733044635,-4000.0,0.00036805,2]
[391697548,1760733044644,-13885.18138166,0.0003691,2]
[391697550,1760733044654,-1000.0,0.00036919,2]
[391697552,1760733044663,-1000.0,0.00037,2]
[391697554,1760733044673,-1000.0,0.00037,2]
[391697556,1760733044682,-1000.0,0.00037,2]
[391697558,1760733044691,-1000.0,0.00037,2]
[391697560,1760733044701,-1000.0,0.00037,2]
[391697562,1760733044711,-1000.0,0.00037,2]
[391697564,1760733044720,-1000.0,0.00037,2]
[391697566,1760733044730,-1000.0,0.00037,2]
[391697568,1760733044740,-1235.24595007,0.00037,30]
[391697570,1760733044750,-1000.0,0.00037,2]
[391697572,1760733044759,-5512.0,0.00037,5]
[391697574,1760733044768,-151.0,0.000371,120]
[391697577,1760733044778,-232.49773783,0.000372,120]
[391697578,1760733044788,-232.49773783,0.000372,120]
[391697581,1760733044798,-232.49773783,0.000372,120]
[391697583,1760733044807,-154.0,0.000372,120]
[391697585,1760733044818,-161.76830817,0.00037352,2]
[391697587,1760733044827,-1000.0,0.00037372,2]
[391697589,1760733044837,-300.0,0.00037389,10]
[391697591,1760733044847,-196620.84056583,0.0003739,14]
[391697593,1760733044856,-1332.5,0.00037462,2]
[391697594,1760733044866,-613.1244,0.00037462,2]
[391697597,1760733044876,-4258.75807104,0.0003759,2]
[391697598,1760733044885,-474.79,0.00037655,2]
[391697600,1760733044894,-695.27,0.00037655,2]
[391697602,1760733044904,-695.27,0.00037655,2]
[391697604,1760733044913,-695.27,0.00037655,2]
[391697607,1760733044923,-695.27,0.00037655,2]
[391697609,1760733044932,-695.27,0.00037655,2]
[391697610,1760733044942,-695.27,0.00037655,2]
[391697613,1760733044951,-695.27,0.00037655,2]
[391697615,1760733044962,-9595.82,0.000377,2]
[391697617,1760733044971,-232.49773783,0.00037748,120]
[391697619,1760733044985,-600.0,0.00037767,2]
[391697621,1760733044994,-253.59,0.00037792,2]
[391697623,1760733045004,-334.77,0.00037792,2]
[391697625,1760733045014,-709.9,0.00037808,60]
[391697627,1760733045023,-709.91,0.00037839,80]
[391697629,1760733045033,-556.0,0.00037869,120]
[391697631,1760733045042,-709.9,0.00037869,100]
[391697633,1760733045051,-151.0,0.0003787,14]
[391697635,1760733045061,-1181.51,0.00037873,2]
[391697637,1760733045070,-7702.47,0.00037873,2]
[391697639,1760733045080,-6364.6,0.00037873,2]
[391697641,1760733045090,-15967.13,0.00037873,2]
[391697643,1760733045100,-19999.99,0.00037873,2]
[391697645,1760733045109,-19484.9,0.00037873,30]
[391697647,1760733045118,-198.59470764,0.0003788,2]
[391697649,1760733045128,-151.0,0.000379,120]
[391697651,1760733045138,-5568.41,0.000379,14]
[391697653,1760733045147,-709.91,0.000379,120]
[391697655,1760733045157,-150.0,0.00037903,7]
[391697657,1760733045167,-787.81930216,0.00037999,120]
[391697658,1760733045177,-1864.84505202,0.00038,120]
[391697659,1760733045186,-273.33284429,0.00038,120]
[391697660,1760733045196,-2031.9,0.00038191,2]
[391697661,1760733045206,-177.83,0.0003823,2]
[391697662,1760733045215,-7969.7375,0.00038356,6]
[391697663,1760733045224,-154.0,0.000385,120]
[391697664,1760733045234,-3013.89087524,0.000386,120]
[391697665,1760733045243,-459.70943458,0.00038603,2]
[391697666,1760733045253,-695.27,0.00038614,2]
[391697668,1760733045263,-695.27,0.00038614,2]
[391697670,1760733045272,-690.16,0.00038614,2]
[391697672,1760733045282,-1156.88,0.00038614,7]
[391697674,1760733045292,-168.24,0.00038663,2]
[391697676,1760733045301,-413.65,0.00038663,2]
[391697678,1760733045311,-168.24,0.00038663,2]
[391697680,1760733045321,-413.65,0.00038663,2]
[391697682,1760733045330,-168.24,0.00038663,2]
[391697684,1760733045340,-413.65,0.00038663,2]
[391697687,1760733045350,-300.0,0.00038663,2]
[391697689,1760733045363,-546.7,0.00038663,2]
[391697691,1760733045372,-300.0,0.00038663,2]
[391697693,1760733045381,-2398.74,0.00038663,2]
[391697695,1760733045391,-1390.54,0.00038663,2]
[391697697,1760733045400,-953.38,0.00038663,2]
[391697699,1760733045410,-546.7,0.00038663,2]
[391697701,1760733045419,-176.05,0.00038663,2]
[391697703,1760733045429,-546.7,0.00038663,2]
[391697705,1760733045438,-546.7,0.00038663,2]
[391697707,1760733045447,-413.6,0.00038663,2]
[391697709,1760733045457,-953.97,0.00038663,2]
[391697711,1760733045466,-151.0,0.000387,120]
[391697713,1760733045475,-2017.44441733,0.000388,120]
[391697715,1760733045485,-1156.88,0.00038888,7]
[391697717,1760733045494,-3081.27788322,0.0003889,30]
[391697719,1760733045503,-151.94049648,0.00038917,15]
[391697721,1760733045514,-7761.65259511,0.0003899,14]
[391697723,1760733045523,-2389.14022544,0.0003899,120]
[391697725,1760733045534,-2600.0,0.00039,120]
[391697727,1760733045544,-70811.13704374,0.00039,10]
[391697729,1760733045553,-2308.67056713,0.00039,120]
[391697731,1760733045566,-1500.40145527,0.00039,120]
[391697733,1760733045576,-2876.37677864,0.00039,30]
[391697736,1760733045586,-3117.26388516,0.00039,120]
[391697737,1760733045595,-39423.67639573,0.00039,120]
[391697740,1760733045605,-1156.88,0.00039162,7]
[391697742,1760733045616,-600.0,0.00039183,2]
[391697744,1760733045626,-151.0,0.000394,120]
[391697745,1760733045635,-1156.88,0.00039436,7]
[391697748,1760733045644,-144928.2493,0.00039444,7]
[391697750,1760733045654,-151.0,0.00039444,120]
[391697752,1760733045663,-151.0,0.00039444,120]
[391697754,1760733045672,-151.0,0.00039444,120]
[391697755,1760733045681,-151.0,0.00039444,120]
[391697758,1760733045691,-151.0,0.00039444,120]
[391697760,1760733045701,-151.0,0.00039444,120]
[391697762,1760733045710,-151.0,0.00039444,120]
[391697764,1760733045719,-151.0,0.00039444,120]
[391697766,1760733045728,-151.0,0.00039444,120]
[391697768,1760733045738,-151.0,0.00039444,120]
[391697770,1760733045747,-151.0,0.00039444,120]
[391697772,1760733045756,-151.0,0.00039444,120]
[391697774,1760733045766,-201.739994,0.00039444,120]
[391697776,1760733045779,-151.0,0.00039444,10]
[391697778,1760733045788,-201.739994,0.00039444,120]
[391697780,1760733045797,-151.0,0.00039444,120]
[391697782,1760733045807,-201.739994,0.00039444,120]
[391697784,1760733045817,-887.215651,0.00039444,120]
[391697786,1760733045827,-151.0,0.00039444,120]
[391697788,1760733045837,-201.739994,0.00039444,120]
[391697790,1760733045847,-887.215651,0.00039444,120]
[391697792,1760733045856,-887.215651,0.00039444,120]
[391697794,1760733045865,-887.215651,0.00039444,120]
[391697797,1760733045874,-151.0,0.00039444,120]
[391697798,1760733045884,-151.0,0.00039444,120]
[391697801,1760733045895,-151.0,0.00039444,120]
[391697803,1760733045905,-377.028455,0.00039444,120]
[391697805,1760733045914,-151.0,0.00039444,120]
[391697807,1760733045924,-151.0,0.00039444,120]
[391697809,1760733045933,-280.345504,0.00039444,120]
[391697811,1760733045943,-377.028455,0.00039444,120]
[391697813,1760733045952,-299.96884,0.00039444,120]
[391697815,1760733045962,-280.345504,0.00039444,120]
[391697816,1760733045971,-377.028455,0.00039444,120]
[391697818,1760733045980,-280.345504,0.00039444,120]
[391697820,1760733045990,-377.028455,0.00039444,120]
[391697822,1760733045999,-280.345504,0.00039444,120]
[391697824,1760733046008,-151.0,0.00039444,120]
[391697826,1760733046018,-151.0,0.00039444,120]
[391697828,1760733046027,-151.0,0.00039444,120]
[391697830,1760733046037,-151.0,0.00039444,120]
[391697832,1760733046046,-151.0,0.00039444,120]
[391697834,1760733046055,-177.804928,0.00039444,120]
[391697836,1760733046065,-177.804928,0.00039444,120]
[391697838,1760733046074,-670.971821,0.00039444,120]
[391697841,1760733046084,-177.804928,0.00039444,120]
[391697843,1760733046095,-670.971821,0.00039444,120]
[391697845,1760733046104,-177.804928,0.00039444,120]
[391697846,1760733046114,-151.0,0.00039444,120]
[391697849,1760733046123,-670.971821,0.00039444,120]
[391697851,1760733046134,-151.0,0.00039444,120]
[391697853,1760733046144,-670.971821,0.00039444,120]
[391697855,1760733046154,-154.421392,0.00039444,120]
[391697856,1760733046163,-154.421392,0.00039444,120]
[391697858,1760733046172,-680.599913,0.00039444,120]
[391697860,1760733046182,-151.0,0.00039444,120]
[391697862,1760733046191,-240.774713,0.00039444,120]
[391697864,1760733046201,-154.421392,0.00039444,120]
[391697867,1760733046210,-680.599913,0.00039444,120]
[391697869,1760733046220,-151.0,0.00039444,120]
[391697871,1760733046229,-151.0,0.00039444,120]
[391697873,1760733046239,-283.832494,0.00039444,120]
[391697875,1760733046249,-154.421392,0.00039444,120]
[391697877,1760733046258,-240.774713,0.00039444,120]
[391697878,1760733046267,-680.599913,0.00039444,120]
[391697880,1760733046276,-240.774713,0.00039444,120]
[391697882,1760733046286,-193.9679,0.00039444,120]
[391697884,1760733046295,-680.599913,0.00039444,120]
[391697887,1760733046304,-283.832494,0.00039444,120]
[391697889,1760733046314,-151.0,0.00039444,120]
[391697891,1760733046323,-240.774713,0.00039444,120]
[391697893,1760733046332,-193.9679,0.00039444,120]
[391697894,1760733046342,-283.832494,0.00039444,120]
[391697897,1760733046351,-151.0,0.00039444,120]
[391697898,1760733046361,-193.9679,0.00039444,120]
[391697900,1760733046370,-283.832494,0.00039444,120]
[391697902,1760733046379,-151.0,0.00039444,120]
[391697904,1760733046388,-193.9679,0.00039444,120]
[391697906,1760733046398,-300.751597,0.00039444,120]
[391697908,1760733046407,-1153.18,0.000395,2]
[391697910,1760733046416,-1151.24,0.000395,30]
[391697912,1760733046425,-300.0,0.00039628,2]
[391697914,1760733046435,-1589.0,0.00039641,2]
[391697916,1760733046444,-571.0,0.00039641,2]
[391697918,1760733046453,-605.0,0.00039641,2]
[391697920,1760733046462,-1310.0,0.00039641,2]
[391697923,1760733046472,-816.0,0.00039641,2]
[391697924,1760733046481,-902.0,0.00039641,2]
[391697926,1760733046490,-2546.0,0.00039641,2]
[391697928,1760733046500,-1183.0,0.00039641,2]
[391697930,1760733046509,-6436.0,0.00039641,2]
[391697932,1760733046518,-622.548,0.00039641,2]
[391697935,1760733046528,-3408.0,0.00039641,2]
[391697937,1760733046542,-749.0,0.00039641,2]
[391697938,1760733046551,-1267.0,0.00039641,2]
[391697940,1760733046560,-3356.0,0.00039641,2]
[391697943,1760733046570,-349.3,0.00039654,2]
[391697944,1760733046579,-500.0,0.00039673,2]
[391697947,1760733046589,-500.0,0.00039673,5]
[391697948,1760733046598,-154.0,0.000397,120]
[391697950,1760733046607,-1156.88,0.0003971,7]
[391697953,1760733046617,-150.0,0.00039902,120]
[391697954,1760733046626,-166.66,0.00039902,2]
[391697956,1760733046636,-1024.85447797,0.0003997,15]
[391697958,1760733046645,-1156.88,0.00039984,7]
[391697960,1760733046655,-445.64713326,0.00039999,7]
[391697962,1760733046664,-500.0,0.00039999,31]
[391697964,1760733046674,-433.98159127,0.00039999,31]
[391697967,1760733046684,-397.91598976,0.00039999,31]
[391697969,1760733046693,-500.0,0.00039999,31]
[391697971,1760733046702,-160.0489383,0.00039999,31]
[391697973,1760733046711,-500.0,0.00039999,31]
[391697975,1760733046720,-500.0,0.00039999,31]
[391697977,1760733046729,-500.0,0.00039999,31]
[391697979,1760733046739,-241.65894001,0.00039999,31]
[391697981,1760733046748,-500.0,0.00039999,31]
[391697982,1760733046757,-500.0,0.00039999,31]
[391697984,1760733046766,-633.63243682,0.00039999,31]
[391697987,1760733046776,-500.0,0.00039999,31]
[391697989,1760733046785,-500.0,0.00039999,31]